Cogmind - Beta 10.2 @@@ ROGUE MODE // 2021.10.23 @ 20:46:31 Player: tangiers Result: Destroyed by S-10 Pest with Light Assault Rifle Performance ------------- Evolutions (0) 0 Regions Visited (1) 200 Robots Destroyed (0) 0 Value Destroyed (0) 0 Prototype IDs (2) 40 Alien Tech Used (0) 0 Bonus (0) 0 TOTAL SCORE: 240 Bonus ------- None Cogmind --------- Core Integrity 0/250 Matter 280/300 Energy 98/100 System Corruption 0% Temperature Cool (6) Movement Core (50) Location -10/Materials Parts ------- > --- POWER (1) -------- (None) > --- PROPULSION (2) --- (None) > --- UTILITY (2) ------ Core Shielding Core Shielding > --- WEAPON (2) ------- (None) > --- INVENTORY (4) ---- Large Storage Unit Large Storage Unit Core Shielding Grenade Launcher Peak State ------------ > --- POWER ------------ (None) > --- PROPULSION ------- (None) > --- UTILITY ---------- Core Shielding Core Shielding > --- WEAPON ----------- (None) > --- INVENTORY -------- Large Storage Unit Large Storage Unit Grenade Launcher [Rating: 2] Favorites ----------- Power None Propulsion None Utility Core Shielding Protection Core Shielding Weapon None Build | -11 -10 ------- Run | Scr Mat Slots Evolved . | . . Power . | . . Propulsion . | . . Utility . | . . Weapon . | . . Parts Attached 2 | . 2 Power . | . . Engine . | . . Core . | . . Reactor . | . . Propulsion . | . . Treads . | . . Leg . | . . Wheel . | . . Hover . | . . Flight . | . . Utility 2 | . 2 Device . | . . Storage . | . . Processor . | . . Hackware . | . . Protection 2 | . 2 Artifact . | . . Weapon . | . . Energy Gun . | . . Energy Cannon . | . . Ballistic Gun . | . . Ballistic Cannon . | . . Launcher . | . . Special Weapon . | . . Impact Weapon . | . . Slashing Weapon . | . . Piercing Weapon . | . . Special Melee Weapon . | . . Unidentified Prototypes . | . . Parts Lost . | . . Power . | . . Propulsion . | . . Utility . | . . Weapon . | . . Highest Loss Streak . | . . Average Slot Usage (%) 25 | . 25 Protection 25 | . 25 Naked Turns 18 | . 18 Heaviest Build 11 | 11 2 Greatest Support 20 | 20 3 Greatest Overweight (x) . | . . Average Overweight (x) . | . . Largest Inventory Capacity 4 | . 4 Average Capacity 4 | . 4 Most Carried 4 | . 4 Average Carried 3 | . 3 Final Capacity 6 | 6 4 Final Carried 6 | 6 4 Class Distribution -------------------- 100% | Mutant Dominant Class ---------------- Mutant | -10/Materials Resources | -11 -10 ----------- Run | Scr Mat Matter Collected 200 | 200 . Remotely . | . . Salvage Created . | . . Parts . | . . Haulers Intercepted . | . . Recyclers Shooed . | . . Parts Field Recycled . | . . Retrieved Matter . | . . Parts Self-Destructed . | . . Prevented . | . . Kills | -11 -10 ------- Run | Scr Mat Combat Hostiles Destroyed . | . . Classes Destroyed . | . . Best Kill Streak . | . . Combat Bots Only . | . . Max Kills in Single Turn . | . . Gunslinging . | . . Exploded . | . . Melee . | . . Uniques/NPCs Destroyed . | . . Combat | -11 -10 -------- Run | Scr Mat Damage Taken 305 | . 305 Core 254 | . 254 Absorbed by Shields . | . . Core Remaining (%) 100 | 100 . Volleys Fired . | . . Largest . | . . Hottest . | . . Shots Fired . | . . Gun . | . . Cannon . | . . Launcher . | . . Special . | . . Kinetic . | . . Thermal . | . . Explosive . | . . Electromagnetic . | . . Robot Hit Streak . | . . Robot Miss Streak . | . . Penetration Max . | . . Secondary Targets . | . . Shots Hit Robots . | . . Core Hits . | . . Critical Hits . | . . Critical Kills . | . . Critical Parts Destroyed . | . . Melee Attacks . | . . Impact . | . . Slashing . | . . Piercing . | . . Sneak Attacks . | . . Combat Hostiles . | . . Follow-up Attacks . | . . Damage Inflicted . | . . Guns . | . . Cannons . | . . Explosions . | . . Melee . | . . Ramming . | . . Kinetic . | . . Thermal . | . . Explosive . | . . Electromagnetic . | . . Impact . | . . Slashing . | . . Piercing . | . . Highest Corruption . | . . Average Corruption . | . . Corruption Purged . | . . Overload Shots . | . . Overflow Damage . | . . Projectiles . | . . Explosions . | . . Melee . | . . Knockbacks . | . . Impact . | . . Kinetic . | . . Secondary . | . . Self-Inflicted Damage . | . . Shots . | . . Rammed . | . . Targets Rammed . | . . Kicked . | . . Crushed . | . . Highest Temperature . | . . Average Temperature . | . . Received Heat Transfer 72 | . 72 Siege Activations . | . . Robots Corrupted . | . . Combat Hostiles . | . . Parts Fried . | . . Impact Corruptions . | . . Robots Melted . | . . Combat Hostiles . | . . Parts Melted . | . . Heat Transferred . | . . Parts Sabotaged . | . . Parts Stolen . | . . Parts Stripped . | . . Power Chain Reactions . | . . Missiles Intercepted . | . . Alert | -11 -10 ------- Run | Scr Mat Peak Influence 20 | . 20 Initial . | . . Average 8 | . 8 Maximum Alert Level . | . . Low Security (%) 100 | . 100 Level 1 . | . . Level 2 . | . . Level 3 . | . . Level 4 . | . . Level 5 . | . . High Security . | . . Max Security . | . . Squads Dispatched 2 | . 2 Investigation . | . . Extermination . | . . Reinforcement 2 | . 2 Assault . | . . Garrison . | . . Intercept . | . . Construction Impeded . | . . Haulers Reinforced . | . . Stealth | -11 -10 --------- Run | Scr Mat Distress Signals 1 | . 1 Communications Jammed . | . . Distress Signals . | . . Times Spotted 10 | . 10 Peak Tracking Total 7 | . 7 Tactical Retreats 1 | . 1 Traps | -11 -10 ------- Run | Scr Mat Traps Triggered . | . . Indirectly . | . . Trap Hack Attempts . | . . Triggered . | . . Disarmed . | . . Reprogrammed . | . . Reused . | . . Traps Extracted . | . . Installed . | . . Triggered . | . . Machines | -11 -10 ---------- Run | Scr Mat Machines Disabled . | . . Max in Single Turn . | . . Machines Sabotaged . | . . Garrisons Compromised . | . . Overloaded Fab Kills . | . . Fab Network Shutdowns . | . . Hacking | -11 -10 --------- Run | Scr Mat Machines Accessed 2 | . 2 Terminals 2 | . 2 Fabricators . | . . Repair Stations . | . . Recycling Units . | . . Scanalyzers . | . . Garrison Access . | . . Total Hacks 7 | . 7 Successful 1 | . 1 Failed 6 | . 6 Catastrophic 1 | . 1 Database Lockouts . | . . Manual 3 | . 3 Terminals 7 | . 7 Fabricators . | . . Repair Stations . | . . Recycling Units . | . . Scanalyzers . | . . Garrison Access . | . . Terminal Hacks 1 | . 1 Prototype ID Bank 1 | . 1 Fabricator Hacks . | . . Repair Station Hacks . | . . Recycling Unit Hacks . | . . Scanalyzer . | . . Garrison Access Hacks . | . . Unauthorized Hacks . | . . Terminals . | . . Fabricators . | . . Repair Stations . | . . Recycling Units . | . . Scanalyzers . | . . Garrison Access . | . . Data Cores Recovered . | . . Used . | . . Hacking Detections 2 | . 2 Full Trace Events . | . . Feedback Events . | . . Feedback Blocked . | . . Robot Schematics Acquired . | . . Robots Built . | . . Matter . | . . Time . | . . Total Robot Build Rating . | . . Part Schematics Acquired . | . . Parts Built . | . . Matter . | . . Time . | . . Total Part Build Rating . | . . Parts Repaired . | . . Time . | . . Parts Recycled . | . . Recycled Matter . | . . Retrieved Matter . | . . Retrieved Components . | . . Parts Scanalyzed . | . . Part Schematics Acquired . | . . Parts Damaged . | . . Bothacking | -11 -10 ------------ Run | Scr Mat Used RIF Installer . | . . Robots Hacked . | . . Non-combat . | . . Combat . | . . Robot Hacks Applied . | . . Relay Couplers Released . | . . Robots Rewired . | . . Allies Hacked . | . . Hacks Repelled . | . . Allies | -11 -10 -------- Run | Scr Mat Total Allies . | . . Largest Group . | . . Highest-Rated Group . | . . Highest-Rated Ally . | . . Total Orders . | . . Ally Attacks . | . . Total Damage . | . . Kills . | . . Allies Corrupted . | . . Allies Melted . | . . Intel | -11 -10 ------- Run | Scr Mat Robot Analysis Total . | . . Derelict Logs Recovered . | . . Drone Launches . | . . Drone Recoveries . | . . Exploration | -11 -10 ------------- Run | Scr Mat Turns Passed 144 | . 144 Spaces Moved 271 | 1 270 Core 270 | . 270 Treads . | . . Legs 1 | 1 . Wheels . | . . Hover . | . . Flight . | . . Fastest Speed 50 | 120 50 Average Speed 50 | 120 50 Slowest Speed 120 | 120 50 Overloaded Moves . | . . Propulsion Burnouts . | . . Robots Hopped . | . . Cave-ins Triggered . | . . Exploration Rate (%) 22 | 2 42 Regions Visited 1 Branch Regions . Pre-discovered Areas . | . . Known Exits Taken . | . . Unknown Exits Taken 1 | 1 . Scrap Searched . | . . Spaces Dug . | . . Terrain Destroyed . | . . Melee . | . . Projectile . | . . AOE . | . . Terrain Rammed . | . . Walls Destroyed . | . . Machines Disabled . | . . Actions | -11 -10 --------- Run | Scr Mat Total 280 | . 280 Wait . | . . Move 270 | . 270 Hop . | . . Pick Up 4 | . 4 Fast Attach 2 | . 2 Attach . | . . Detach . | . . Swap . | . . Drop 4 | . 4 Fire . | . . Melee . | . . Ram . | . . Kick . | . . Crush . | . . Escape Stasis . | . . Rewire . | . . Trap . | . . Miscellaneous . | . . Route ------- -11/Scrapyard -10/Materials (discovered 3 exits: [*Mat] / [*Min x2]) History --------- Turn | Location | Event 1 | -11/Scrapyard | Discovered new exit (range 0) 1 | -11/Scrapyard | Entered Materials 1 | -10/Materials | Released all parts (6) 37 | -10/Materials | Discovered new exit (range 8) 50 | -10/Materials | Discovered new exit (range 5) 127 | -10/Materials | Core integrity fell below 50% 139 | -10/Materials | Core integrity fell below 20% 145 | -10/Materials | Discovered new exit (range 15) 145 | -10/Materials | Destroyed by S-10 Pest with Light Assault Rifle Last Messages --------------- >>Prototypes Downloading prototype IDs... Cld. Ion Engine Adv. Beam Cannon 00017_ Acquired Grenade Launcher. 00019_ Acquired Core Shielding. 00029_ Connecting with Terminal... 00037_ EXIT=FOUND 00041_ K-01 Serf collects debris. 00050_ EXIT=FOUND 00081_ ALERT: Hostiles spotted, dispatching reinforcements to Terminal M003. 00090_ K-01 Serf collects debris. 00098_ K-01 Serf cleans the Terminal. 00110_ K-01 Serf collects debris. 00121_ ALERT: Hostiles spotted, dispatching reinforcements to Terminal M007. 00137_ W-16 Scout sends out distress signal. 00143_ K-01 Serf collects debris. 00145_ EXIT=FOUND Map ----- +----------------------------------------------------+ | ???????????????????????????????######! """ | | ????????????????????????????????????#! """"" | | ????????????????????????????????????#! """"" | | ????????????????????????????????????# """"" | | ????????????????????????????????????# """ | | ????????????????????????????????????# | | ????????????????????????????????????# | | ????????????????????????????????????############T# | | ???????????????????????????????????????????????### | | ?????????????????????????????????????????????????? | | ??????????????????????? ?????????????????????? | | ??????????????????????? < ?????????????????????? | | ??????????????????????? ?????????????????????? | | ??????????????????????? ?????????????????????? | | ???????????????????????" ?????????????????????? | | ???????????????????????# #?????????????????????? | | ???????????????????????# #?????????????????????? | | ???????????????????????+ +?????????????#######?? | | ???????????????????????# #?????????????# ### | | ???????????????????????# #?????????????# | | ???????????????????????# #?????????????# < | | ???????????????????????# #?????????????# | | ???????????????????????# #?????????????#! ### | | ???????????????????????+ #?????????????## ##?? | | ???????????????????????#m #??????????????# #??? | | ???????????????????????# @ #??????????????# #??# | | ???????????????????????#u #??????????????# #??" | | ????????????############ #??????????????# #?"Y | | ????????????# ## #??????????????# #? | | ???????????#" ## k ################ # | | ???????????#T """ # ^ # | | ????????????" """"" # ^ + | | ????????????# """"" # # | | ????????????# """"" # w # | | ????????????# """ #ss """ """ """ ==#? | | ????????????# # """ """ """ ==#? | | ????????????####+####/#gs """ """ """ #### | | ???????????????# g | | ???????#" #### < | | ???????# + | | ???????# # ######+###### ###########+### | | ????????????#????? ???##########???????? ? | | ???????????????? """ """????????????????? | | ??????????????# """ """ #?????????????# """ """ | | ??????????????# """ """ #?????????????# """ """ | | ??????????????# """ """ #?????????????# """ """ | | ??????????????# ???????????????# | | ??????????????# ?? ! ????????????????? | | ??????????????##?????###???????????????????######? | | | +----------------------------------------------------+ Best States ------------- Heat Dissipation 25 Energy Generation 5 Energy Capacity 100 Matter Stores 300 Matter Capacity 300 Sight Range 16 Terrain Scan Density 10 Core Shielding 20 Evasion (%) 50 Item Schematics ----------------- None Robot Schematics ------------------ None Fabricated ------------ Nothing Alien Tech Used ----------------- None Achievements -------------- None Challenges ------------ None Game ------ Seed ChromaticTargetingThruster Manual? 0 Play Time 00:04:00 Cumulative 293.2 hours Start 2021.10.23 @ 20:31:21 End 2021.10.23 @ 20:46:31 Sessions 1 Manual Loads 0 Difficulty Rogue Special Mode None Game No. 219 Rogue 219 Adventurer 0 Explorer 0 Win Type - Total 6 Types 5/0/1/0/0/0/0/0/0 Lore% 52 Gallery% 75 Achievement% 60 Wizard Run 0 Options --------- ASCII 0 Keyboard 0 Movement Numpad Keybinds 0 Fullscreen 2 Font 18/TerminusBold Map View 76x50 Tactical HUD 1 Map Filters NONE Filters NONE Steam 1 RUN: 67df3c58-2c2e-4b32-a648-e60efa274f2d